bitfinex-derivatives/quotes_ETHF0:USTF0_20250212
["timestamp","ask_amount","ask_price","bid_price","bid_amount"]
[1739358901686,0.35724748,2625.8,2625.4,0.5988]
[1739358901877,3.2078,2625.7,2625.4,0.5988]
[1739358902081,0.5908,2625.6,2625.4,0.5988]
[1739358902288,1.1649,2625.6,2625.4,0.5988]
[1739358902485,0.578,2625.5,2625.4,0.5988]
[1739358902691,0.578,2625.5,2625.1,1.1624]
[1739358902991,1.39112312,2625.5,2625.2,0.5988]
[1739358903689,1.39112312,2625.5,2625.0,0.00571222]
[1739358903690,3.2078,2625.3,2625.0,0.00571222]
[1739358903892,1.668,2625.2,2625.0,0.00571222]
[1739358904194,0.5493,2625.1,2625.0,0.00310854]
[1739358905386,6.5493,2625.1,2624.6,0.19151053]
[1739358905586,6.62842662,2624.8,2624.6,0.19151053]
[1739358905788,1.02847564,2624.7,2624.6,0.19151053]
[1739358906195,1.38572312,2624.7,2624.6,0.19151053]
[1739358906389,0.81312312,2624.7,2624.6,0.19151053]
[1739358906594,0.35724748,2624.7,2624.6,0.19151053]
[1739358906991,3.2078,2624.8,2624.6,0.19151053]
[1739358907499,3.2078,2624.8,2624.7,40.8]
[1739358907699,0.81312312,2625.0,2624.7,40.8]
[1739358907890,0.35724748,2625.0,2624.8,0.5873]
[1739358908187,0.35724748,2625.0,2624.9,0.5777]
[1739358908605,3.2078,2625.2,2624.9,0.5777]
[1739358908804,3.2078,2625.2,2625.0,40.8]
[1739358909002,3.7966,2625.2,2625.0,40.8]
[1739358909208,3.7966,2625.2,2624.8,0.5873]
[1739358909209,4.00482662,2625.1,2624.8,0.5873]
[1739358909508,4.81794974,2625.1,2624.8,0.5873]
[1739358910109,4.81794974,2625.1,2624.6,0.19151053]
[1739358910307,3.2078,2624.9,2624.6,0.19151053]
[1739358912500,0.6086,2624.8,2624.6,0.19151053]
[1739358913102,0.96584748,2624.8,2624.6,0.19151053]
[1739358913310,0.35724748,2624.8,2624.6,0.19151053]
[1739358913512,4.8758,2624.9,2624.6,0.19151053]
[1739358915311,1.668,2624.9,2624.6,0.19151053]
[1739358915614,0.6051,2625.1,2624.6,0.19151053]
[1739358915615,3.2078,2625.1,2624.6,0.19151053]
[1739358915819,3.7607,2625.1,2624.6,0.19151053]
[1739358916908,4.11794748,2625.1,2624.6,0.19151053]
[1739358917110,4.11794748,2625.1,2624.7,3.2078]
[1739358917413,4.11794748,2625.1,2624.8,41.3904]
[1739358917713,3.7607,2625.1,2624.8,41.3904]
[1739358917912,3.7607,2625.1,2624.9,0.5551]
[1739358920114,3.2078,2625.1,2624.9,3.97572662]
[1739358920308,3.2078,2625.1,2625.0,0.6031]
[1739358921112,5.19602838,2625.6,2625.0,0.6031]
[1739358921315,0.4570809,2625.5,2625.0,0.6031]
[1739358921615,0.4570809,2625.5,2624.9,0.5551]
[1739358921817,5.34680651,2625.6,2624.9,0.5551]
[1739358922017,0.35724748,2625.5,2624.9,0.5551]
[1739358922320,0.81432838,2625.5,2624.9,0.5551]
[1739358922619,0.35724748,2625.5,2624.9,0.5551]
[1739358922914,5.19602838,2625.6,2624.9,0.5551]
[1739358923816,3.2078,2625.3,2624.7,3.6011]
[1739358924018,1.1662,2625.2,2624.7,3.6011]
[1739358924318,0.5623,2625.1,2624.7,3.6011]
[1739358926519,1.98052838,2625.2,2624.7,6.8089]
[1739358926912,1.0378809,2625.2,2624.7,6.8089]
[1739358927119,3.8107,2625.3,2624.7,6.8089]
[1739358927518,3.2078,2625.3,2624.7,6.8089]
[1739358929715,1.98892838,2625.5,2625.1,3.2078]
[1739358929914,0.35724748,2625.5,2625.2,1.7572]
[1739358930309,1.2076,2625.8,2625.2,1.7572]
[1739358931016,4.02212838,2625.9,2625.2,5.17782662]
[1739358931222,4.16554748,2625.9,2625.2,5.17782662]
[1739358931420,4.16554748,2625.9,2625.4,3.2078]
[1739358931821,3.8083,2625.9,2625.4,3.2078]
[1739358936218,0.6005,2625.9,2625.4,3.2078]
[1739358938022,1.0641809,2626.0,2625.4,3.2078]
[1739358938316,0.6071,2626.0,2625.4,3.2078]
[1739358938520,0.35724748,2626.1,2625.8,6.62842662]
[1739358938720,0.35724748,2626.1,2625.9,1.7113]
[1739358938935,0.55871222,2626.2,2625.9,1.7113]
[1739358940425,0.00571222,2626.2,2625.9,1.7113]
[1739358942333,0.00571222,2626.2,2626.0,0.1947599]
[1739358942735,0.00571222,2626.2,2626.1,3.2078]
[1739358943426,0.00571222,2626.2,2626.0,0.1947599]
[1739358945533,0.00571222,2626.2,2626.1,0.5822]
[1739358945829,0.00571222,2626.2,2626.1,1.191]
[1739358946026,0.00571222,2626.2,2626.1,7.81942662]
[1739358946227,0.00571222,2626.2,2626.1,8.37312662]
[1739358947033,0.00571222,2626.2,2626.1,49.17312662]
[1739358949339,0.00571222,2626.2,2626.1,45.7525]
[1739358949538,0.00571222,2626.2,2626.1,4.3988]
[1739358950336,0.00571222,2626.2,2626.1,3.2078]
[1739358954540,0.00571222,2626.2,2626.0,0.1947599]
[1739358961545,7.98715271,2626.2,2625.5,6.2058]
[1739358961745,6.62842662,2625.9,2625.5,6.2058]
[1739358961943,1.05839301,2625.8,2625.6,40.8]
[1739358962247,1.1646,2625.7,2625.6,40.8]
[1739358962443,1.1646,2625.7,2625.5,6.2058]
[1739358962642,1.1646,2625.7,2625.5,2.998]
[1739358963942,0.5843,2625.7,2625.5,2.998]
[1739358964147,0.96024748,2625.8,2625.6,0.6053]
[1739358964759,1.668,2626.0,2625.6,0.6053]
[1739358965055,0.5536,2625.9,2625.6,0.6053]
[1739358966050,1.668,2626.0,2625.6,3.8131]
[1739358966452,1.95054049,2626.1,2625.7,3.42062662]
[1739358966654,0.35724748,2626.1,2625.9,3.2078]
[1739358966847,0.35724748,2626.1,2626.0,0.5709]
[1739358967147,0.00571222,2626.2,2626.0,4.56302662]
[1739358967546,0.00571222,2626.2,2626.1,40.8]
[1739358971742,0.00571222,2626.2,2626.1,40.98763219]
[1739358977055,0.5544,2626.9,2626.1,40.98763219]
[1739358977251,0.5544,2626.9,2626.5,3.2078]
[1739358977953,0.5544,2626.9,2626.4,0.5957]
[1739358978459,0.56011222,2626.9,2626.4,0.5957]
[1739358978657,0.56011222,2626.9,2626.4,41.3957]
[1739358982652,0.56011222,2626.9,2626.4,0.5957]
[1739358982854,0.56011222,2626.9,2626.2,3.2078]
[1739358985155,0.56011222,2626.9,2626.3,3.42062662]
[1739358985462,0.00571222,2626.9,2626.6,3.42062662]
[1739358985756,0.00571222,2626.9,2626.7,1.2074]
[1739358988360,0.00571222,2626.9,2626.8,3.2078]
[1739358988560,0.00571222,2626.9,2626.8,44.0078]
[1739358989158,0.95794748,2627.5,2626.8,44.0078]
[1739358989361,0.95794748,2627.5,2627.1,6.62842662]
[1739358989559,0.6007,2627.5,2627.2,1.1591]
[1739358991082,0.00571222,2627.6,2627.4,6.62842662]
[1739358991255,0.00571222,2627.6,2627.5,0.608]
[1739358994159,0.00571222,2627.6,2627.4,3.2078]
[1739358994771,0.00571222,2627.6,2627.5,0.19250619]
[1739359012982,0.46105619,2627.6,2627.5,0.19250619]
[1739359013175,0.81830367,2627.6,2627.5,0.19250619]
[1739359013684,1.32535928,2627.6,2627.1,0.00571222]
[1739359013983,2.48530367,2627.6,2627.1,0.00571222]
[1739359017380,0.81830367,2627.6,2627.1,6.63413884]
[1739359017583,0.81830367,2627.6,2627.2,0.607]
[1739359017584,0.3629597,2627.6,2627.2,0.607]
[1739359017884,0.00571222,2627.6,2627.2,0.607]
[1739359018084,0.00571222,2627.6,2627.3,0.5621]
[1739359018287,0.00571222,2627.6,2627.4,0.5834]
[1739359019186,0.00571222,2627.6,2627.4,7.21182662]
[1739359021789,0.00571222,2627.6,2627.5,0.18884165]
[1739359022985,3.21351222,2627.6,2627.1,3.21351222]
[1739359023291,4.02610367,2627.6,2627.1,3.21351222]
[1739359023591,3.42062662,2627.4,2627.1,0.00571222]
[1739359023781,1.7769,2627.3,2627.1,0.00571222]
[1739359023981,4.8748,2627.2,2626.4,3.758]
[1739359024183,3.2078,2626.8,2626.4,3.2078]
[1739359024383,4.00252662,2626.7,2626.2,0.0303525]
[1739359024689,1.667,2626.6,2626.2,40.8]
[1739359024881,3.2078,2626.4,2626.0,3.2078]
[1739359025277,3.2078,2626.4,2626.0,3.21351222]
[1739359025789,6.62842662,2626.4,2626.0,0.00571222]
[1739359025990,0.45534397,2626.3,2626.0,0.00571222]
[1739359026192,0.81259145,2626.3,2626.0,0.00571222]
[1739359026386,0.5685,2626.2,2626.0,0.00571222]
[1739359027092,3.2078,2626.1,2626.0,0.00571222]
[1739359027291,3.7853,2626.1,2626.0,0.00571222]
[1739359027499,7.20592662,2626.1,2625.4,3.2078]
[1739359027684,2.67674397,2626.0,2625.4,3.2078]
[1739359028090,3.03399145,2626.0,2625.4,3.2078]
[1739359028486,2.57864748,2626.0,2625.4,3.2078]
[1739359028683,2.5843597,2626.0,2625.4,3.21351222]
[1739359029191,3.42062662,2625.8,2625.4,3.21351222]
[1739359033795,3.42062662,2625.8,2625.4,0.00571222]
[1739359036803,6.62842662,2625.5,2625.4,0.00571222]
[1739359037002,6.62842662,2625.5,2624.7,0.5933]
[1739359037204,3.42062662,2625.2,2624.7,0.5933]
[1739359037503,6.62842662,2625.2,2624.8,40.8]
[1739359037901,6.62842662,2625.2,2624.5,3.2078]
[1739359038298,6.62842662,2625.2,2624.7,40.8]
[1739359040701,0.5841,2625.1,2624.7,40.8]
[1739359043106,0.5841,2625.1,2624.6,0.19531867]
[1739359043497,0.5841,2625.1,2624.7,40.8]
[1739359046402,0.5841,2625.1,2624.6,0.19531867]
[1739359046896,0.5841,2625.1,2624.6,40.99531867]
[1739359047300,0.5841,2625.1,2624.6,0.19531867]
[1739359047301,3.42062662,2624.9,2624.6,0.19531867]
[1739359047602,1.668,2624.8,2624.6,0.00380814]
[1739359047802,2.8728,2624.8,2624.6,0.00380814]
[1739359048204,5.8518,2624.8,2624.2,0.74589785]
[1739359048409,3.42062662,2624.4,2624.2,0.74589785]
[1739359049807,3.42062662,2624.4,2624.2,0.18749785]
[1739359050001,0.6001,2624.3,2624.2,0.18749785]
[1739359050308,0.6001,2624.3,2623.9,3.7979]
[1739359050503,1.668,2624.2,2623.9,3.7979]
[1739359054000,3.42062662,2624.1,2623.9,3.7979]
[1739359054210,3.42062662,2624.1,2623.8,0.5881]
[1739359054415,3.99042662,2624.1,2623.8,0.5881]
[1739359055917,3.99042662,2624.1,2623.6,40.8]
[1739359056214,3.99042662,2624.1,2623.5,3.2078]
[1739359057512,3.42062662,2623.8,2623.5,3.2078]
[1739359065616,4.34799546,2624.1,2623.5,3.2078]
[1739359065811,4.34799546,2624.1,2623.6,0.5753]
[1739359066011,3.99042662,2624.1,2623.6,0.5753]
[1739359067219,4.34798203,2624.1,2623.6,0.5753]
[1739359067818,2.02655541,2624.1,2623.6,0.5753]
[1739359068215,1.669,2624.1,2623.6,0.5753]
[1739359069025,5.08962662,2624.1,2623.6,0.5753]
[1739359069821,3.42062662,2624.1,2623.6,0.5753]
[1739359070017,1.668,2624.0,2623.6,0.5753]
[1739359070323,3.2078,2624.2,2623.6,0.5753]
[1739359070526,4.8758,2624.2,2623.6,0.5753]
[1739359070718,1.668,2624.2,2623.6,0.5753]
[1739359071018,1.668,2624.2,2623.8,3.2078]
[1739359071221,1.668,2624.2,2623.9,0.5801]
[1739359071420,1.668,2624.2,2623.9,1.1359]
[1739359073423,1.668,2624.3,2623.9,1.1359]
[1739359074225,5.08862662,2624.4,2623.9,1.1359]
[1739359074615,0.35749597,2624.3,2623.9,1.1359]
[1739359075824,0.81350753,2624.3,2623.9,1.1359]
[1739359076127,0.35749597,2624.3,2623.9,1.1359]
[1739359076726,0.81369629,2624.3,2623.9,1.1359]
[1739359078323,0.35749597,2624.3,2624.1,3.2078]
[1739359078628,0.35749597,2624.3,2624.2,0.5669]
[1739359078936,0.00571222,2624.6,2624.2,0.5669]
[1739359079228,0.00571222,2624.6,2624.3,0.5674]
[1739359079431,0.00571222,2624.6,2624.4,0.5506]
[1739359084743,0.00571222,2624.6,2624.5,3.2078]
[1739359085330,0.00571222,2624.6,2624.5,44.0078]
[1739359087336,0.00571222,2624.6,2624.4,0.5506]
[1739359089136,0.00571222,2624.6,2624.5,3.2078]
[1739359089740,0.00571222,2624.6,2624.5,44.0078]
[1739359089936,0.00571222,2624.6,2624.5,47.0058]
[1739359093042,0.00571222,2624.6,2624.5,6.2058]
[1739359093942,0.00571222,2624.6,2624.5,2.998]
[1739359095040,0.00571222,2624.6,2624.5,6.2058]
[1739359095745,0.5981,2625.2,2624.5,12.2058]
[1739359095941,0.5981,2625.2,2624.8,3.42062662]
[1739359096135,0.5981,2625.2,2624.9,1.7086]
[1739359097742,3.21351222,2625.3,2624.9,42.5086]
[1739359097938,0.00571222,2625.3,2624.9,45.7164]
[1739359099841,0.00571222,2625.3,2624.9,42.5086]
[1739359100043,0.00571222,2625.3,2625.0,3.2078]
[1739359103742,0.00571222,2625.3,2624.9,0.565]
[1739359103944,3.42633884,2625.3,2624.8,0.00571222]
[1739359104141,3.88120116,2625.3,2624.8,0.00571222]
[1739359104341,3.2078,2625.1,2624.8,0.00571222]
[1739359104548,0.5698,2625.0,2624.8,0.00571222]
[1739359104747,0.5802,2624.9,2624.8,0.00571222]
[1739359113950,0.5802,2624.9,2624.2,0.18847094]
[1739359114143,3.42062662,2624.6,2624.2,0.18847094]
[1739359114348,1.1877,2624.5,2624.2,0.18847094]
[1739359114543,0.6063,2624.4,2624.2,0.18847094]
[1739359122150,3.42062662,2624.3,2624.2,0.18847094]
[1739359122347,3.87581569,2624.3,2624.2,0.18847094]
[1739359122946,4.23321847,2624.3,2624.2,0.18847094]
[1739359125751,3.7780294,2624.3,2624.2,0.18847094]
[1739359127344,3.7780294,2624.3,2623.8,3.2078]
[1739359127749,3.2078,2624.0,2623.7,0.5506]
[1739359127949,1.7432,2623.9,2623.7,0.5506]
[1739359130558,1.7432,2623.9,2623.5,41.3817]
[1739359130747,1.7432,2623.9,2623.5,1.1755]
[1739359139661,2.10075844,2623.9,2623.5,1.1755]
[1739359139860,2.10075844,2623.9,2623.5,0.5938]
[1739359140661,3.42062662,2623.7,2623.5,0.5938]
[1739359141554,3.42062662,2623.7,2623.4,3.2078]
[1739359145762,2.02555844,2623.8,2623.4,3.2078]
[1739359146155,1.668,2623.8,2623.4,3.2078]
[1739359147558,1.668,2623.8,2623.4,44.0078]
[1739359148060,6.62842662,2623.7,2623.2,0.5859]
[1739359148360,6.62842662,2623.4,2623.2,0.5859]
[1739359148663,6.62842662,2623.4,2622.7,3.2078]
[1739359148664,1.1995,2623.3,2622.8,0.77600578]
[1739359148866,2.60440251,2623.3,2622.9,1.142]
[1739359149161,2.14865844,2623.3,2622.9,1.142]
[1739359149761,0.35755844,2623.3,2622.9,1.142]
[1739359150265,3.2078,2623.4,2622.9,1.142]
[1739359150665,3.2078,2623.4,2623.0,3.2078]
[1739359151164,3.2078,2623.4,2622.9,1.142]
[1739359152358,0.81314824,2623.6,2623.0,3.2078]
[1739359152561,0.35755844,2623.6,2623.0,3.2078]
[1739359152757,6.60518506,2623.7,2623.0,3.2078]
[1739359153161,0.35755844,2623.6,2623.0,3.2078]
[1739359154461,0.35755844,2623.6,2623.1,40.8]
[1739359155560,0.35755844,2623.6,2623.3,6.62842662]
[1739359155767,0.35755844,2623.6,2623.4,1.1485]
[1739359155966,0.35755844,2623.6,2623.5,0.5532]
[1739359156368,3.2078,2623.8,2623.5,0.5532]
[1739359159462,0.36327066,2624.0,2623.5,0.5532]
[1739359159966,0.00571222,2624.0,2623.5,0.5532]
[1739359161170,0.00571222,2624.0,2623.6,3.2078]
[1739359161567,0.00571222,2624.0,2623.6,6.62842662]
[1739359161774,0.00571222,2624.0,2623.9,3.2078]
[1739359172870,1.54280305,2624.5,2623.9,6.62842662]
[1739359172871,0.35750305,2624.5,2623.9,6.62842662]
[1739359173081,0.35750305,2624.8,2624.0,1.1092]
[1739359173278,0.35750305,2624.8,2624.2,3.2078]
[1739359173477,0.35750305,2624.8,2624.2,6.62842662]
[1739359174183,0.36321527,2624.8,2624.3,40.8]
[1739359174380,0.00571222,2624.8,2624.7,3.2078]
[1739359175279,3.56530305,2625.4,2624.7,9.39831722]
[1739359175475,3.2078,2625.4,2624.7,6.39631722]
[1739359175679,3.2078,2625.4,2624.8,0.5626]
[1739359176681,3.21351222,2625.4,2624.8,0.5626]
[1739359177378,3.21351222,2625.4,2624.8,3.98322662]
[1739359178081,0.00571222,2625.4,2625.2,3.2078]
[1739359178280,0.00571222,2625.4,2625.3,1.1944]
[1739359178475,0.00571222,2625.4,2625.3,0.6069]
[1739359178881,0.00571222,2625.4,2625.0,0.00571222]
[1739359179081,0.00571222,2625.4,2625.0,0.61261222]
[1739359182580,3.42062662,2625.2,2625.0,0.00571222]
[1739359182883,1.6979,2625.1,2625.0,0.00571222]
[1739359187783,2.05527176,2625.1,2625.0,0.00571222]
[1739359194294,1.6979,2625.1,2625.0,0.00571222]
[1739359194687,0.5629,2625.1,2625.0,0.00571222]
[1739359194990,0.5629,2625.1,2625.0,0.60451222]
[1739359197688,0.36308398,2625.4,2625.0,4.02513884]
[1739359197987,0.36308398,2625.4,2625.3,6.62842662]
[1739359198193,0.36308398,2625.4,2625.3,3.2078]
[1739359198582,0.00571222,2625.4,2625.3,3.2078]
[1739359198786,0.00571222,2625.4,2625.3,44.0078]
[1739359202086,0.00571222,2625.4,2625.3,47.42842662]
[1739359202289,0.35737176,2625.8,2625.3,53.42842662]
[1739359202493,3.2078,2626.2,2625.6,3.42062662]
[1739359203097,2.20063884,2626.4,2625.7,3.2078]
[1739359203298,2.0055106,2626.4,2625.8,0.5562]
[1739359203596,0.00571222,2626.3,2626.0,3.2078]
[1739359204087,0.00571222,2626.3,2626.0,6.2058]
[1739359205792,0.00571222,2626.3,2626.2,0.19520829]
[1739359209104,0.00571222,2626.3,2626.2,3.61583491]
[1739359211997,0.00571222,2626.3,2626.2,0.19520829]
[1739359213099,1.77531222,2626.3,2626.2,0.19520829]
[1739359213297,2.22896552,2626.3,2626.2,0.19520829]
[1739359213804,2.58633728,2626.3,2626.2,0.19520829]
[1739359214701,8.58633728,2626.3,2625.6,3.2078]
[1739359214905,3.42062662,2625.8,2625.3,3.2078]
[1739359215107,1.1629,2625.7,2625.3,3.2078]
[1739359216406,1.61672515,2625.7,2625.3,3.2078]
[1739359216609,1.97409691,2625.7,2625.3,3.2078]
[1739359216810,1.37929691,2625.7,2625.3,3.2078]
[1739359217002,0.92547176,2625.7,2625.3,3.2078]
[1739359217610,0.5681,2625.7,2625.3,3.2078]
[1739359218120,3.42062662,2625.5,2625.0,3.78531222]
[1739359218300,3.42062662,2625.5,2625.0,3.21351222]
[1739359218810,3.7779483,2625.5,2625.0,3.21351222]
[1739359219307,3.42062662,2625.2,2625.0,0.00571222]
[1739359219507,1.1652,2625.1,2625.0,0.00571222]
[1739359223610,3.2078,2625.3,2625.0,0.00571222]
[1739359223802,0.5552,2625.5,2625.0,0.00571222]
[1739359224112,4.33316339,2625.5,2625.0,0.00571222]
[1739359224304,0.5643,2625.4,2625.0,0.00571222]
[1739359235015,3.7721,2625.4,2625.0,0.00571222]
[1739359236922,3.42062662,2625.2,2625.0,0.00571222]
[1739359237117,0.5656,2625.1,2625.0,0.00571222]
[1739359237320,1.135,2625.1,2625.0,0.00571222]
[1739359241425,0.5694,2625.1,2625.0,0.00571222]
[1739359242029,0.81182899,2625.3,2625.0,0.00571222]
[1739359242229,0.35739858,2625.3,2625.0,0.00571222]
[1739359242426,4.01962899,2625.4,2625.0,0.00571222]
[1739359242930,3.56519858,2625.4,2625.0,0.58451222]
[1739359243323,3.2078,2625.4,2625.0,0.58451222]
[1739359243631,0.81182899,2625.6,2625.1,3.2078]
[1739359243821,4.01962899,2625.7,2625.1,3.2078]
[1739359244027,3.56519858,2625.7,2625.1,6.2058]
[1739359244529,3.2078,2625.7,2625.1,6.2058]
[1739359246419,3.2078,2625.7,2625.2,3.42062662]
[1739359247131,0.81182899,2626.0,2625.6,3.2078]
[1739359247327,0.81182899,2626.0,2625.7,1.1911]
[1739359247328,0.35739858,2626.0,2625.7,1.1911]
[1739359247525,1.37182899,2626.2,2625.7,1.1911]
[1739359247730,0.35739858,2626.2,2625.8,0.5781]
[1739359248026,0.35739858,2626.2,2625.9,40.8]
[1739359248223,0.00571222,2626.3,2625.9,40.8]
[1739359250341,0.00571222,2626.3,2625.9,44.0078]
[1739359250839,0.00571222,2626.3,2625.9,3.2078]
[1739359254240,0.00571222,2626.3,2626.2,0.19146649]
[1739359258042,0.00571222,2626.3,2626.2,0.74406649]
[1739359258438,0.00571222,2626.3,2626.2,0.19146649]
[1739359260852,0.00571222,2626.3,2626.2,0.79196649]
[1739359261843,0.00571222,2626.3,2626.2,1.34606649]
[1739359262943,3.2078,2626.8,2626.2,1.34606649]
[1739359263247,3.2078,2626.8,2626.2,4.34406649]
[1739359263646,3.2078,2626.8,2626.3,40.8]
[1739359264149,3.21351222,2626.8,2626.3,40.8]
[1739359265046,3.21351222,2626.8,2626.4,3.2078]
[1739359266941,3.21351222,2626.8,2626.4,6.62842662]
[1739359269444,3.21351222,2626.8,2626.5,0.5881]
[1739359270549,3.21351222,2626.8,2626.5,2.2521]
[1739359272552,3.21351222,2626.8,2626.7,3.42062662]
[1739359274355,1.9749031,2627.5,2626.7,15.62642662]
[1739359274554,1.52007292,2627.5,2627.1,3.2078]
[1739359274755,1.1629,2627.5,2627.2,0.6074]
[1739359274953,1.1629,2627.5,2627.3,0.6066]
[1739359275456,3.57068514,2627.7,2627.3,0.6066]
[1739359275656,3.57068514,2627.7,2627.4,0.6071]
[1739359275849,3.21351222,2627.7,2627.4,0.6071]
[1739359276558,0.00571222,2627.7,2627.4,3.8149]
[1739359277056,0.00571222,2627.7,2627.5,40.8]
[1739359277555,0.00571222,2627.7,2627.6,0.6074]
[1739359278853,0.00571222,2627.7,2627.6,4.02802662]
[1739359279054,4.02059567,2628.3,2627.6,4.02802662]
[1739359279253,4.73587292,2628.3,2627.6,7.02602662]
[1739359279451,5.19149567,2628.3,2627.6,7.02602662]
[1739359279655,4.02059567,2628.3,2627.9,3.42062662]
[1739359279853,3.56497292,2628.3,2628.2,3.42062662]
[1739359280057,0.35717292,2628.3,2628.2,3.42062662]
[1739359280356,0.00380814,2628.5,2628.2,3.42062662]
[1739359281253,0.00380814,2628.5,2628.3,3.2078]
[1739359283052,0.00380814,2628.5,2628.4,1.664]
[1739359283849,0.00380814,2628.5,2628.4,42.464]
[1739359285457,0.00380814,2628.5,2628.4,1.664]
[1739359285858,0.00380814,2628.5,2628.4,42.464]
[1739359286359,0.00380814,2628.5,2628.4,1.664]
[1739359286859,0.00380814,2628.5,2628.3,6.2058]
[1739359291969,0.00380814,2628.5,2628.3,3.2078]
[1739359293663,0.00380814,2628.5,2628.2,40.8]
[1739359300770,0.00380814,2628.5,2628.0,3.21351222]
[1739359301163,0.00380814,2628.5,2628.1,40.8]
[1739359307578,3.2078,2628.3,2628.0,0.00571222]
[1739359307875,1.6821,2628.2,2628.0,0.00571222]
[1739359310374,0.81117501,2628.3,2628.0,0.00571222]
[1739359310574,0.35690915,2628.3,2628.0,0.00571222]
[1739359310873,0.45426586,2628.3,2628.0,0.00571222]
[1739359311080,4.9609,2628.4,2628.0,0.00571222]
[1739359311279,5.31780915,2628.4,2628.0,0.00571222]
[1739359311582,0.45426586,2628.3,2628.0,0.00571222]
[1739359312474,0.81117501,2628.3,2628.0,0.00571222]
[1739359313782,0.00272303,2628.1,2628.0,0.00571222]
[1739359319378,0.00272303,2628.1,2628.0,3.21351222]
[1739359319981,0.00380814,2628.5,2628.0,3.21351222]
[1739359320182,0.00380814,2628.5,2628.3,6.62842662]
[1739359320377,0.00380814,2628.5,2628.4,1.1307]
[1739359321884,4.01897501,2629.2,2628.4,7.1307]
[1739359322184,6.39962662,2630.0,2629.0,6.62842662]
[1739359322185,3.2078,2629.6,2629.0,6.62842662]
[1739359322376,3.2078,2629.6,2629.1,0.5619]
[1739359322576,3.2078,2629.6,2629.1,1.1622]
[1739359323280,3.2078,2629.6,2629.2,40.8]
[1739359323480,0.5784,2629.5,2629.2,40.8]
[1739359324678,3.2078,2629.6,2629.1,1.1622]
[1739359324981,3.2078,2629.6,2629.2,41.3809]
[1739359326679,3.2078,2629.6,2629.3,3.42062662]
[1739359326882,0.35690915,2629.8,2629.3,6.62842662]
[1739359327077,0.35690915,2629.8,2629.6,6.62842662]
[1739359327283,0.35690915,2629.8,2629.7,1.7622]
[1739359327680,1.94608728,2630.2,2629.7,1.7622]
[1739359327878,1.49140915,2630.2,2629.7,1.7622]
[1739359328587,1.1345,2630.2,2629.7,1.7622]
[1739359329380,1.1345,2630.2,2629.8,3.42062662]
[1739359329883,3.66195832,2630.3,2629.8,3.42062662]
[1739359330080,3.56470915,2630.3,2629.8,3.42062662]
[1739359330481,0.35690915,2630.3,2629.9,44.0078]
[1739359330681,0.35690915,2630.4,2629.9,44.0078]
[1739359331283,0.35690915,2630.4,2630.1,3.42062662]
[1739359331480,1.1732,2630.5,2629.9,44.0078]
[1739359333684,1.1632,2630.5,2629.9,3.2078]
[1739359335085,3.2078,2630.3,2629.9,3.2078]
[1739359335281,0.5973,2630.2,2629.9,3.2078]
[1739359335693,0.5568,2630.1,2629.9,3.2078]
[1739359336599,0.5637,2630.0,2629.9,3.2078]
[1739359338790,0.5568,2630.1,2629.9,3.2078]
[1739359339892,0.5876,2630.4,2629.9,3.2078]
[1739359340089,0.5854,2630.5,2630.1,3.42062662]
[1739359340294,0.5854,2630.5,2630.2,1.1669]
[1739359340600,0.5854,2630.5,2630.3,40.8]
[1739359344607,3.2078,2630.6,2630.3,40.8]
[1739359347809,3.2078,2630.6,2630.2,1.1669]
[1739359348003,6.62842662,2630.6,2629.9,3.2078]
[1739359348202,3.42062662,2630.3,2629.9,3.2078]
[1739359348408,1.7911,2630.2,2629.6,3.2078]
[1739359349508,1.7911,2630.2,2629.7,0.5652]
[1739359349712,1.7911,2630.2,2629.8,0.5849]
[1739359350810,1.7911,2630.2,2629.7,0.5652]
[1739359351612,1.7911,2630.2,2629.8,0.5846]
[1739359351807,2.24649205,2630.2,2629.8,0.5846]
[1739359352413,2.60311832,2630.2,2629.8,0.5846]
[1739359353008,2.60311832,2630.2,2629.7,0.5652]
[1739359353207,3.2078,2630.0,2629.7,0.5652]
[1739359353411,3.2078,2630.0,2629.5,41.38191222]
[1739359355011,6.62842662,2630.0,2629.5,40.80571222]
[1739359355208,0.45539205,2629.9,2629.5,0.00571222]
[1739359355413,1.31936177,2629.9,2629.5,0.00571222]
[1739359355713,0.5973,2629.8,2629.5,0.00571222]
[1739359356818,4.01981832,2630.0,2629.5,3.42633884]
[1739359357014,3.56442627,2630.0,2629.5,3.42633884]
[1739359357216,3.2078,2630.0,2629.5,3.42633884]
[1739359358512,6.62842662,2630.0,2629.5,0.00571222]
[1739359358813,0.96261831,2629.9,2629.5,0.00571222]
[1739359359019,1.31924458,2629.9,2629.5,0.00571222]
[1739359359219,0.5543,2629.8,2629.5,0.00571222]
[1739359359412,1.1661,2629.7,2629.5,0.00571222]
[1739359362512,0.5543,2629.8,2629.5,0.00571222]
[1739359363522,3.56442627,2630.0,2629.5,0.00571222]
[1739359364719,3.2078,2630.0,2629.5,0.00571222]
[1739359365922,6.62842662,2630.0,2629.5,0.00571222]
[1739359366124,0.45539205,2629.9,2629.5,0.00571222]
[1739359366424,0.81201832,2629.9,2629.5,0.00571222]
[1739359369224,3.2078,2630.0,2629.5,0.00571222]
[1739359372123,3.2078,2630.0,2629.6,40.8]
[1739359372623,3.2078,2630.0,2629.6,41.4041]
[1739359375626,3.2078,2629.7,2629.5,0.00571222]
[1739359375832,1.7347,2629.6,2629.5,0.00571222]
[1739359377124,2.19009205,2629.6,2629.5,0.00571222]
[1739359377430,2.54671832,2629.6,2629.5,0.00571222]
[1739359379826,0.81201832,2629.6,2629.5,0.00571222]
[1739359380126,0.35662627,2629.6,2629.5,0.00571222]
[1739359380526,2.51281832,2629.9,2629.5,0.00571222]
[1739359380720,2.51281832,2629.9,2629.6,40.8]
[1739359381121,2.51281832,2629.9,2629.7,0.5749]
[1739359381328,0.81201832,2629.9,2629.7,0.5749]
[1739359381633,0.35662627,2629.9,2629.7,0.5749]
[1739359382030,3.2078,2630.0,2629.7,0.5749]
[1739359384436,3.2078,2630.0,2629.8,40.8]
[1739359386145,3.2078,2630.0,2629.9,0.6072]
[1739359386836,1.38611832,2630.1,2629.9,0.6072]
[1739359387037,0.93072627,2630.1,2629.9,0.6072]
[1739359387539,0.5741,2630.1,2629.9,0.6072]